fUST/lending_fUST_20250806
["ID","MTS","AMOUNT","RATE_DAILY","PERIOD"]
[377467175,1754417472790,-259.0,0.0004137,90]
[377467176,1754417472800,-200.0,0.00041371,3]
[377467177,1754417472809,-200.0,0.00041493,120]
[377467178,1754417472820,-19414.75,0.000415,14]
[377467179,1754417472829,-500.0,0.00041621,30]
[377467180,1754417472839,-500.0,0.00041806,30]
[377467181,1754417472848,-1940.58,0.00041917,120]
[377467182,1754417472859,-3552.81,0.00042,7]
[377467183,1754417472869,-461.15695721,0.00042,30]
[377467184,1754417472879,-527.3554621,0.00042,30]
[377467185,1754417472888,-500.0,0.00042143,30]
[377467186,1754417472898,-500.0,0.00042164,30]
[377467187,1754417472907,-500.0,0.00042467,30]
[377467188,1754417472917,-5783.60216059,0.00042576,28]
[377467189,1754417472926,-500.0,0.00042582,30]
[377467190,1754417472935,-1940.58,0.00042739,120]
[377467191,1754417472946,-500.0,0.00042751,30]
[377467192,1754417472956,-194.7,0.00042794,120]
[377467193,1754417472967,-153.0,0.000428,120]
[377467194,1754417472977,-500.0,0.00042804,30]
[377467195,1754417472986,-500.0,0.00042862,30]
[377467196,1754417472996,-500.0,0.00042955,30]
[377467197,1754417473006,-499.3,0.00043041,30]
[377467198,1754417473016,-500.0,0.00043076,30]
[377467199,1754417473026,-200.0,0.000431,120]
[377467200,1754417473036,-38947.64,0.000431,14]
[377467201,1754417473046,-259.0,0.00043151,90]
[377467202,1754417473056,-1458.65,0.000432,14]
[377467203,1754417473067,-1940.58,0.00043561,120]
[377467204,1754417473078,-156.681698,0.00043716,7]
[377467205,1754417473088,-500.0,0.00043793,30]
[377467206,1754417473098,-1000.0,0.000438,90]
[377467207,1754417473107,-1000.0,0.000438,90]
[377467208,1754417473117,-1000.0,0.000438,90]
[377467209,1754417473128,-500.0,0.00043899,30]
[377467210,1754417473137,-408.0,0.00044015,2]
[377467211,1754417473146,-156.681698,0.00044113,60]
[377467212,1754417473156,-153.0,0.000442,120]
[377467213,1754417473165,-3552.81,0.000442,7]
[377467214,1754417473174,-500.0,0.00044361,30]
[377467215,1754417473183,-1940.58,0.00044383,120]
[377467216,1754417473192,-426.7,0.00044707,120]
[377467217,1754417473201,-194.7,0.00044761,120]
[377467218,1754417473213,-200.0,0.00045,120]
[377467219,1754417473222,-1818.93773954,0.00045,8]
[377467220,1754417473232,-500.0,0.00045072,30]
[377467221,1754417473241,-200.0,0.00045085,30]
[377467222,1754417473250,-200.0,0.00045085,30]
[377467223,1754417473259,-200.0,0.00045085,30]
[377467224,1754417473275,-200.0,0.00045085,30]
[377467225,1754417473285,-200.0,0.00045085,30]
[377467226,1754417473295,-200.0,0.00045085,30]
[377467227,1754417473305,-200.0,0.00045085,30]
[377467228,1754417473314,-200.0,0.00045085,30]
[377467229,1754417473325,-200.0,0.00045085,30]
[377467230,1754417473334,-200.0,0.00045085,30]
[377467231,1754417473344,-200.0,0.00045085,30]
[377467232,1754417473353,-200.0,0.00045085,30]
[377467233,1754417473362,-289.0,0.00045085,30]
[377467234,1754417473372,-1940.58,0.00045205,120]
[377467235,1754417473382,-265.0,0.00045308,90]
[377467236,1754417473391,-426.7,0.0004538,120]
[377467237,1754417473401,-153.0,0.000457,120]
[377467238,1754417473410,-500.0,0.00045923,30]
[377467239,1754417473419,-1940.58,0.00046027,120]
[377467240,1754417473429,-426.7,0.00046053,120]
[377467241,1754417473439,-19414.75,0.000461,14]
[377467242,1754417473449,-445.355619,0.00046143,2]
[377467243,1754417473459,-500.0,0.00046169,30]
[377467244,1754417473468,-2461.07,0.000462,7]
[377467245,1754417473478,-500.0,0.00046379,30]
[377467246,1754417473490,-500.0,0.00046469,30]
[377467247,1754417473500,-1003.17761493,0.00046496,15]
[377467248,1754417473509,-200.0,0.00046508,120]
[377467249,1754417473520,-500.0,0.00046547,30]
[377467250,1754417473530,-500.0,0.00046575,120]
[377467251,1754417473539,-500.0,0.00046674,30]
[377467252,1754417473549,-500.0,0.00046696,30]
[377467253,1754417473558,-426.7,0.00046727,120]
[377467254,1754417473568,-194.7,0.00046729,120]
[377467255,1754417473577,-156.681698,0.00046742,60]
[377467256,1754417473587,-500.0,0.00046849,120]
[377467257,1754417473597,-1940.58,0.00046849,120]
[377467258,1754417473607,-342.80639,0.000469,120]
[377467259,1754417473617,-202.219,0.00046918,78]
[377467260,1754417473627,-408.0,0.00047015,2]
[377467261,1754417473637,-153.0,0.000471,120]
[377467262,1754417473646,-500.0,0.00047123,120]
[377467263,1754417473661,-500.0,0.00047397,120]
[377467264,1754417473670,-426.7,0.000474,120]
[377467265,1754417473680,-500.0,0.00047671,120]
[377467266,1754417473691,-1940.58,0.00047671,120]
[377467267,1754417473701,-500.0,0.00047945,120]
[377467268,1754417473710,-426.7,0.00048073,120]
[377467269,1754417473719,-500.0,0.00048219,120]
[377467270,1754417473730,-259.0,0.00048329,90]
[377467271,1754417473740,-500.0,0.00048493,120]
[377467272,1754417473751,-1940.58,0.00048493,120]
[377467273,1754417473760,-153.0,0.000485,120]
[377467274,1754417473770,-194.7,0.00048697,120]
[377467275,1754417473875,-19414.75,0.000487,14]
[377467276,1754417473888,-426.7,0.00048746,120]
[377467277,1754417473898,-500.0,0.00048767,120]
[377467278,1754417473907,-500.0,0.00049041,120]
[377467279,1754417473917,-500.0,0.00049045,30]
[377467280,1754417473926,-500.0,0.00049153,30]
[377467281,1754417473936,-500.0,0.0004924,30]
[377467282,1754417473945,-900.0,0.00049295,30]
[377467283,1754417473954,-500.0,0.00049315,120]
[377467284,1754417473964,-1940.58,0.00049315,120]
[377467285,1754417473974,-160.0,0.00049344,3]
[377467286,1754417473983,-156.681698,0.00049371,60]
[377467287,1754417473992,-426.7,0.00049419,120]
[377467288,1754417474001,-200.0,0.00049424,60]
[377467289,1754417474011,-200.0,0.00049424,60]
[377467290,1754417474020,-200.0,0.00049424,60]
[377467291,1754417474030,-200.0,0.00049424,60]
[377467292,1754417474040,-200.0,0.00049424,60]
[377467293,1754417474050,-200.0,0.00049424,60]
[377467294,1754417474060,-200.0,0.00049424,60]
[377467295,1754417474071,-200.0,0.00049424,60]
[377467296,1754417474081,-200.0,0.00049424,60]
[377467297,1754417474090,-200.0,0.00049424,60]
[377467298,1754417474100,-200.0,0.00049424,60]
[377467299,1754417474109,-200.0,0.00049424,60]
[377467300,1754417474119,-200.0,0.00049424,60]
[377467301,1754417474130,-200.0,0.00049424,60]
[377467302,1754417474140,-200.0,0.00049424,60]
[377467303,1754417474151,-200.0,0.00049424,60]
[377467304,1754417474161,-200.0,0.00049424,60]
[377467305,1754417474170,-364.0,0.00049424,60]
[377467306,1754417474180,-500.0,0.00049532,30]
[377467307,1754417474190,-500.0,0.00049589,120]
[377467308,1754417474201,-500.0,0.00049652,30]
[377467309,1754417474211,-700.0,0.00049748,30]
[377467310,1754417474221,-700.0,0.00049845,30]
[377467311,1754417474230,-500.0,0.00049863,120]
[377467312,1754417474239,-153.0,0.0005,120]
[377467313,1754417474248,-12655.02535889,0.0005,7]
[377467314,1754417474258,-12655.02535889,0.0005,30]
[377467315,1754417474267,-12655.02535889,0.0005,120]
[377467316,1754417474276,-527.3554621,0.0005,120]
[377467317,1754417474286,-408.0,0.00050015,120]
[377467318,1754417474295,-200.0,0.00050046,120]
[377467319,1754417474305,-426.7,0.00050093,120]
[377467320,1754417474317,-486.24,0.00050136,120]
[377467321,1754417474326,-1940.58,0.00050136,120]
[377467322,1754417474336,-156.681698,0.00050358,7]
[377467323,1754417474345,-194.7,0.00050664,120]
[377467324,1754417474357,-426.7,0.00050766,120]
[377467325,1754417474367,-5783.60216059,0.00050929,28]
[377467326,1754417474377,-1940.58,0.00050958,120]
[377467327,1754417474386,-3552.81,0.00051,7]
[377467328,1754417474396,-200.0,0.00051279,120]
[377467329,1754417474406,-259.0,0.00051349,120]
[377467330,1754417474416,-153.0,0.000514,120]
[377467331,1754417474425,-426.7,0.00051439,120]
[377467332,1754417474435,-156.681698,0.0005145,90]
[377467333,1754417474444,-500.0,0.0005174,30]
[377467334,1754417474454,-1940.69,0.0005178,120]
[377467335,1754417474467,-259.0,0.00051781,120]
[377467336,1754417474476,-18964.0,0.00052,120]
[377467337,1754417474487,-156.531809,0.00052,60]
[377467338,1754417474498,-156.681698,0.00052,60]
[377467339,1754417474508,-19414.75,0.00052,14]
[377467340,1754417474518,-1321.15,0.00052,120]
[377467341,1754417474527,-426.7,0.00052112,120]
[377467342,1754417474537,-445.355619,0.00052632,2]
[377467343,1754417474546,-194.7,0.00052632,120]
[377467344,1754417474555,-426.7,0.00052785,120]
[377467345,1754417474564,-300.0,0.00052793,52]
[377467346,1754417474573,-300.0,0.00052793,52]
[377467347,1754417474582,-151.0,0.00052793,52]
[377467348,1754417474591,-21396.85944216,0.00052793,52]
[377467349,1754417474601,-600.0,0.000528,2]
[377467350,1754417474611,-300.0,0.00052899,62]
[377467351,1754417474620,-300.0,0.00052899,62]
[377467352,1754417474633,-151.0,0.00052899,62]
[377467353,1754417474643,-20633.42279861,0.00052899,62]
[377467354,1754417474663,-2105.41764886,0.00052899,62]
[377467355,1754417474675,-153.0,0.000529,120]
[377467356,1754417474685,-200.0,0.00052954,120]
[377467357,1754417474694,-1458.65,0.00053,14]
[377467358,1754417474708,-38947.64,0.00053,14]
[377467359,1754417474719,-408.0,0.00053015,120]
[377467360,1754417474728,-156.681698,0.00053175,90]
[377467361,1754417474737,-300.0,0.00053299,120]
[377467362,1754417474747,-300.0,0.00053299,120]
[377467363,1754417474756,-151.0,0.00053299,120]
[377467364,1754417474765,-19897.22545671,0.00053299,120]
[377467365,1754417474775,-300.0,0.00053329,30]
[377467366,1754417474787,-300.0,0.00053329,30]
[377467367,1754417474797,-151.0,0.00053329,30]
[377467368,1754417474806,-19187.29552238,0.00053329,30]
[377467369,1754417474816,-2030.296672,0.00053329,30]
[377467370,1754417474825,-600.0,0.0005335,2]
[377467371,1754417474835,-426.7,0.00053459,120]
[377467372,1754417474844,-300.0,0.00053469,99]
[377467373,1754417474854,-300.0,0.00053469,99]
[377467374,1754417474863,-151.0,0.00053469,99]
[377467375,1754417474872,-18502.69577858,0.00053469,99]
[377467376,1754417474884,-300.0,0.00053478,53]
[377467377,1754417474894,-300.0,0.00053478,53]
[377467378,1754417474904,-151.0,0.00053478,53]
[377467379,1754417474913,-17842.522448,0.00053478,53]
[377467380,1754417474924,-1957.856,0.00053478,53]
[377467381,1754417474934,-600.0,0.000539,2]
[377467382,1754417474943,-426.7,0.00054132,120]
[377467383,1754417474952,-200.0,0.0005418,90]
[377467384,1754417474961,-200.0,0.0005418,90]
[377467385,1754417474973,-200.0,0.0005418,90]
[377467386,1754417474984,-200.0,0.0005418,90]
[377467387,1754417474994,-200.0,0.0005418,90]
[377467388,1754417475004,-200.0,0.0005418,90]
[377467389,1754417475014,-200.0,0.0005418,90]
[377467390,1754417475023,-200.0,0.0005418,90]
[377467391,1754417475033,-200.0,0.0005418,90]
[377467392,1754417475042,-200.0,0.0005418,90]
[377467393,1754417475051,-200.0,0.0005418,90]
[377467394,1754417475061,-200.0,0.0005418,90]
[377467395,1754417475070,-200.0,0.0005418,90]
[377467396,1754417475079,-200.0,0.0005418,90]
[377467397,1754417475089,-200.0,0.0005418,90]
[377467398,1754417475099,-200.0,0.0005418,90]
[377467399,1754417475108,-200.0,0.0005418,90]
[377467400,1754417475117,-200.0,0.0005418,90]
[377467401,1754417475128,-200.0,0.0005418,90]
[377467402,1754417475138,-200.0,0.0005418,90]
[377467403,1754417475149,-200.0,0.0005418,90]
[377467404,1754417475159,-200.0,0.0005418,90]
[377467405,1754417475168,-200.0,0.0005418,90]
[377467406,1754417475178,-200.0,0.0005418,90]
[377467407,1754417475188,-200.0,0.0005418,90]
[377467408,1754417475197,-153.0,0.000543,120]
[377467409,1754417475206,-800.0,0.00054316,60]
[377467410,1754417475216,-259.0,0.0005437,120]
[377467411,1754417475225,-600.0,0.0005445,2]
[377467412,1754417475234,-500.0,0.00054464,30]
[377467413,1754417475243,-426.7,0.00054805,120]
[377467414,1754417475253,-800.0,0.00054864,120]
[377467415,1754417475262,-300.0,0.00054896,90]
[377467416,1754417475271,-300.0,0.00054896,90]
[377467417,1754417475280,-151.0,0.00054896,90]
[377467418,1754417475289,-500.0,0.00054896,90]
[377467419,1754417475298,-151.0,0.00054896,90]
[377467420,1754417475308,-17205.904,0.00054896,90]
[377467421,1754417475317,-151.0,0.00054896,90]
[377467422,1754417475326,-156.531809,0.000549,90]
[377467423,1754417475335,-156.681698,0.000549,90]
[377467424,1754417475345,-160.0,0.00054981,4]
[377467425,1754417475355,-160.0,0.00054981,5]
[377467426,1754417475364,-832.27377088,0.00055,2]
[377467427,1754417475376,-250.0,0.0005507,3]
[377467428,1754417475385,-800.0,0.00055412,120]
[377467429,1754417475394,-153.0,0.000557,120]
[377467430,1754417475404,-800.0,0.0005596,120]
[377467431,1754417475413,-408.0,0.00056015,120]
[377467432,1754417475423,-500.0,0.0005633,120]
[377467433,1754417475433,-510.60697333,0.0005633,120]
[377467434,1754417475442,-800.0,0.00056508,120]
[377467435,1754417475452,-800.0,0.0005673,60]
[377467436,1754417475461,-300.0,0.00056999,120]
[377467437,1754417475470,-300.0,0.00056999,120]
[377467438,1754417475480,-151.0,0.00056999,120]
[377467439,1754417475489,-500.0,0.00056999,120]
[377467440,1754417475500,-16592.0,0.00056999,120]
[377467441,1754417475510,-151.0,0.00056999,120]
[377467442,1754417475519,-151.0,0.00056999,120]
[377467443,1754417475528,-156.531809,0.00057,7]
[377467444,1754417475538,-156.681698,0.00057,7]
[377467445,1754417475548,-156.5,0.00057,120]
[377467446,1754417475557,-800.0,0.00057038,60]
[377467447,1754417475567,-834.63511551,0.00057132,60]
[377467448,1754417475577,-200.0,0.00057185,120]
[377467449,1754417475587,-153.0,0.000572,120]
[377467450,1754417475596,-500.0,0.00057329,120]
[377467451,1754417475606,-500.0,0.00057329,120]
[377467452,1754417475615,-500.0,0.00057329,120]
[377467453,1754417475625,-500.0,0.00057329,120]
[377467454,1754417475634,-500.0,0.00057329,120]
[377467455,1754417475644,-500.0,0.00057329,120]
[377467456,1754417475657,-500.0,0.00057329,120]
[377467457,1754417475668,-500.0,0.00057329,120]
[377467458,1754417475678,-500.0,0.00057329,120]
[377467459,1754417475687,-500.0,0.00057329,120]
[377467460,1754417475696,-502.61562994,0.00057329,120]
[377467461,1754417475708,-500.0,0.00057329,120]
[377467462,1754417475718,-500.0,0.00057329,120]
[377467463,1754417475727,-500.0,0.00057329,120]
[377467464,1754417475737,-481.33159325,0.00057329,120]
[377467465,1754417475747,-151.0,0.00057329,2]
[377467466,1754417475757,-500.0,0.00057329,120]
[377467467,1754417475766,-500.0,0.00057329,120]
[377467468,1754417475776,-500.0,0.00057329,120]
[377467469,1754417475785,-500.0,0.00057329,120]
[377467470,1754417475795,-500.0,0.00057329,120]
[377467471,1754417475805,-365.73574217,0.00057329,120]
[377467472,1754417475814,-500.0,0.00057329,120]
[377467473,1754417475824,-500.0,0.00057329,120]
[377467474,1754417475833,-500.0,0.00057329,120]
[377467475,1754417475843,-500.0,0.00057329,120]
[377467476,1754417475852,-500.0,0.00057329,120]
[377467477,1754417475862,-500.0,0.00057329,120]
[377467478,1754417475871,-500.0,0.00057329,120]
[377467479,1754417475881,-500.0,0.00057329,120]
[377467480,1754417475891,-500.0,0.00057329,120]
[377467481,1754417475900,-500.0,0.00057329,120]
[377467482,1754417475910,-500.0,0.00057329,120]
[377467483,1754417475919,-500.0,0.00057329,120]
[377467484,1754417475928,-500.0,0.00057329,120]
[377467485,1754417475937,-500.0,0.00057329,120]
[377467486,1754417475946,-500.0,0.00057329,120]
[377467487,1754417475955,-500.0,0.00057329,120]
[377467488,1754417475965,-376.0,0.00057329,120]
[377467489,1754417475975,-151.0,0.00057329,120]
[377467490,1754417475984,-238.41025479,0.00057329,120]
[377467491,1754417475994,-500.0,0.00057329,2]
[377467492,1754417476003,-151.0,0.00057329,2]
[377467493,1754417476013,-500.0,0.00057329,120]
[377467494,1754417476022,-500.0,0.00057329,120]
[377467495,1754417476031,-363.59136091,0.00057329,120]
[377467496,1754417476041,-151.0,0.00057329,2]
[377467497,1754417476050,-268.50875535,0.00057329,120]
[377467498,1754417476059,-151.93048648,0.00057329,120]
[377467499,1754417476068,-151.0,0.00057329,120]
[377467500,1754417476077,-151.0,0.00057329,120]
[377467501,1754417476087,-153.92469844,0.00057329,120]
[377467502,1754417476096,-151.0,0.00057329,120]
[377467503,1754417476106,-151.0,0.00057329,120]
[377467504,1754417476115,-151.0,0.00057329,120]
[377467505,1754417476124,-152.86304183,0.00057329,120]
[377467506,1754417476133,-500.0,0.00057329,120]
[377467507,1754417476142,-500.0,0.00057329,120]
[377467508,1754417476152,-500.0,0.00057329,120]
[377467509,1754417476161,-500.0,0.00057329,120]
[377467510,1754417476170,-500.0,0.00057329,120]
[377467511,1754417476179,-500.0,0.00057329,120]
[377467512,1754417476188,-500.0,0.00057329,120]
[377467513,1754417476197,-500.0,0.00057329,120]
[377467514,1754417476207,-500.0,0.00057329,120]
[377467515,1754417476216,-516.29389014,0.00057329,120]
[377467516,1754417476226,-267.06449588,0.00057329,120]
[377467517,1754417476235,-500.0,0.00057329,120]
[377467518,1754417476245,-500.0,0.00057329,120]
[377467519,1754417476254,-500.0,0.00057329,120]
[377467520,1754417476263,-500.0,0.00057329,120]
[377467521,1754417476272,-500.0,0.00057329,120]
[377467522,1754417476282,-500.0,0.00057329,120]
[377467523,1754417476291,-642.7220488,0.00057329,120]
[377467524,1754417476301,-500.0,0.00057329,120]
[377467525,1754417476310,-500.0,0.00057329,120]
[377467526,1754417476320,-500.0,0.00057329,120]
[377467527,1754417476329,-500.0,0.00057329,120]
[377467528,1754417476338,-500.0,0.00057329,120]
[377467529,1754417476348,-500.0,0.00057329,120]
[377467530,1754417476358,-500.0,0.00057329,120]
[377467531,1754417476367,-500.0,0.00057329,120]
[377467532,1754417476378,-500.0,0.00057329,120]
[377467533,1754417476387,-500.0,0.00057329,120]
[377467534,1754417476397,-450.45895924,0.00057329,120]
[377467535,1754417476408,-500.0,0.00057329,120]
[377467536,1754417476419,-500.0,0.00057329,120]
[377467537,1754417476429,-238.07487911,0.00057329,120]
[377467538,1754417476438,-500.0,0.00057329,120]
[377467539,1754417476448,-500.0,0.00057329,120]
[377467540,1754417476457,-565.35384149,0.00057329,120]
[377467541,1754417476467,-151.0,0.00057329,120]
[377467542,1754417476476,-151.0,0.00057329,120]
[377467543,1754417476485,-151.0,0.00057329,120]
[377467544,1754417476494,-151.0,0.00057329,120]
[377467545,1754417476503,-154.59053653,0.00057329,120]
[377467546,1754417476512,-151.0,0.00057329,120]
[377467547,1754417476521,-151.0,0.00057329,120]
[377467548,1754417476530,-151.0,0.00057329,120]
[377467549,1754417476539,-151.0,0.00057329,120]
[377467550,1754417476548,-151.0,0.00057329,120]
[377467551,1754417476558,-233.43568945,0.00057329,120]
[377467552,1754417476566,-500.0,0.00057329,120]
[377467553,1754417476576,-500.0,0.00057329,120]
[377467554,1754417476585,-500.0,0.00057329,120]
[377467555,1754417476594,-500.0,0.00057329,120]
[377467556,1754417476604,-297.16967531,0.00057329,120]
[377467557,1754417476613,-151.85552275,0.00057329,120]
[377467558,1754417476622,-151.0,0.00057329,120]
[377467559,1754417476632,-158.66535787,0.00057329,120]
[377467560,1754417476641,-500.0,0.00057329,120]
[377467561,1754417476653,-500.0,0.00057329,120]
[377467562,1754417476662,-500.0,0.00057329,120]
[377467563,1754417476672,-226.55124403,0.00057329,120]
[377467564,1754417476681,-151.0,0.00057329,120]
[377467565,1754417476692,-222.44273759,0.00057329,120]
[377467566,1754417476701,-151.0,0.00057329,120]
[377467567,1754417476710,-151.0,0.00057329,120]
[377467568,1754417476720,-151.0,0.00057329,120]
[377467569,1754417476732,-281.18879753,0.00057329,120]
[377467570,1754417476742,-151.0,0.00057329,120]
[377467571,1754417476751,-151.0,0.00057329,120]
[377467572,1754417476760,-151.0,0.00057329,120]
[377467573,1754417476769,-263.34861173,0.00057329,120]
[377467574,1754417476778,-151.0,0.00057329,120]
[377467575,1754417476787,-151.0,0.00057329,120]
[377467576,1754417476797,-151.0,0.00057329,120]
[377467577,1754417476806,-252.90453717,0.00057329,120]
[377467578,1754417476815,-500.0,0.00057329,120]
[377467579,1754417476824,-500.0,0.00057329,120]
[377467580,1754417476834,-210.0726996,0.00057329,120]
[377467581,1754417476843,-500.0,0.00057329,120]
[377467582,1754417476853,-500.0,0.00057329,120]
[377467583,1754417476862,-500.0,0.00057329,120]
[377467584,1754417476872,-500.0,0.00057329,120]
[377467585,1754417476882,-500.0,0.00057329,120]
[377467586,1754417476891,-500.0,0.00057329,120]
[377467587,1754417476901,-500.0,0.00057329,120]
[377467588,1754417476911,-500.0,0.00057329,120]
[377467589,1754417476920,-500.0,0.00057329,120]
[377467590,1754417476931,-441.65988742,0.00057329,120]
[377467591,1754417476940,-500.0,0.00057329,120]
[377467592,1754417476949,-500.0,0.00057329,120]
[377467593,1754417476960,-500.0,0.00057329,120]
[377467594,1754417476970,-500.0,0.00057329,120]
[377467595,1754417476979,-500.0,0.00057329,120]
[377467596,1754417476989,-514.83558711,0.00057329,120]
[377467597,1754417476998,-151.0,0.00057329,120]
[377467598,1754417477007,-151.0,0.00057329,120]
[377467599,1754417477016,-151.0,0.00057329,120]
[377467600,1754417477026,-151.0,0.00057329,120]
[377467601,1754417477035,-151.0,0.00057329,120]
[377467602,1754417477045,-179.76263769,0.00057329,120]
[377467603,1754417477054,-500.0,0.00057329,120]
[377467604,1754417477063,-500.0,0.00057329,120]
[377467605,1754417477072,-363.10056619,0.00057329,120]
[377467606,1754417477081,-151.0,0.00057329,120]
[377467607,1754417477091,-151.0,0.00057329,120]
[377467608,1754417477100,-151.0,0.00057329,120]
[377467609,1754417477109,-151.0,0.00057329,120]
[377467610,1754417477118,-273.36839226,0.00057329,120]
[377467611,1754417477128,-500.0,0.00057329,120]
[377467612,1754417477137,-605.79851188,0.00057329,120]
[377467613,1754417477146,-500.0,0.00057329,120]
[377467614,1754417477155,-500.0,0.00057329,120]
[377467615,1754417477165,-500.0,0.00057329,120]
[377467616,1754417477174,-500.0,0.00057329,120]
[377467617,1754417477183,-500.0,0.00057329,120]
[377467618,1754417477192,-500.0,0.00057329,120]
[377467619,1754417477202,-500.0,0.00057329,120]
[377467620,1754417477212,-268.69908877,0.00057329,120]
[377467621,1754417477221,-500.0,0.00057329,120]
[377467622,1754417477231,-500.0,0.00057329,120]
[377467623,1754417477240,-500.0,0.00057329,120]
[377467624,1754417477370,-164.54570753,0.00057329,120]
[377467625,1754417477381,-151.0,0.00057329,120]
[377467626,1754417477390,-151.0,0.00057329,120]
[377467627,1754417477400,-151.0,0.00057329,120]
[377467628,1754417477410,-153.5899979,0.00057329,120]
[377467629,1754417477420,-151.90970189,0.00057329,120]
[377467630,1754417477431,-151.0,0.00057329,120]
[377467631,1754417477443,-181.64750543,0.00057329,120]
[377467632,1754417477453,-300.0,0.00057329,30]
[377467633,1754417477463,-300.0,0.00057329,30]
[377467634,1754417477473,-151.0,0.00057329,30]
[377467635,1754417477482,-500.0,0.00057329,30]
[377467636,1754417477492,-16000.0,0.00057329,30]
[377467637,1754417477501,-151.0,0.00057329,30]
[377467638,1754417477512,-1888.0,0.00057329,30]
[377467639,1754417477524,-151.0,0.00057329,30]
[377467640,1754417477534,-2948128.7760226,0.0005733,30]
[377467641,1754417477622,-1335.51470334,0.0005733,30]
[377467642,1754417477821,-160.0,0.00027,3]
[377467643,1754417477831,-2717.99118606,0.0005733,30]
[377467644,1754417477845,-28079.72924081,0.0005733,30]
[377467645,1754417477859,-4095.81139931,0.0005733,30]
[377467646,1754417477879,-1773.52408398,0.0005733,30]
[377467647,1754417477928,160.0,0.0002,3]
[377467648,1754417477983,160.0,0.0002,3]
[377467649,1754417478022,160.0,0.0002,7]
[377467652,1754417531165,199.8323709,0.00025031,2]
[377467654,1754417539216,31969.903028,0.00029,120]
[377467655,1754417606538,241.0,0.00031426,120]
[377467656,1754417709202,24900.0,0.00024882,2]
[377467658,1754417764292,200.280243,0.00025103,2]
[377467659,1754417764606,202.10298006,0.00025103,2]
[377467661,1754417868254,5627.2155047,0.00025078,2]
[377467662,1754417880582,181.539142,0.00024879,2]
[377467663,1754417923350,187.4048582,0.00024882,2]
[377467667,1754418098139,346.182649,0.00013699,2]
[377467668,1754418098294,346.182649,0.00020187,2]
[377467670,1754418132930,1000.0,0.00024879,2]
[377467671,1754418196634,150.0,0.00025173,2]
[377467722,1754418403333,317.0993,0.00024874,2]
[377467743,1754418471184,82987.4569936,0.00018,2]
[377467744,1754418471217,250.69329571,0.000209,2]
[377467749,1754418475366,3671.6617199,0.00018,2]
[377467764,1754418502356,270.88110488,0.00021,2]
[377467767,1754418505220,255.0989311,0.000176,2]
[377467772,1754418506955,1123.94312469,0.00024656,2]
[377467788,1754418515014,170.79517473,0.00021,10]
[377467793,1754418517158,56003.37841563,0.0002,2]
[377467797,1754418517873,12496.65325151,0.0002,2]
[377467798,1754418517959,195806.96101286,0.00025,2]
[377467799,1754418518304,1278.47704481,0.00018,2]